bitfinex/quotes_BTCUSD_20250615
["timestamp","ask_amount","ask_price","bid_price","bid_amount"]
[1750030927077,8.923e-05,105710.0,105700.0,0.76605825]
[1750030927286,8.923e-05,105710.0,105700.0,0.75659788]
[1750030927522,8.923e-05,105710.0,105700.0,0.76605834]
[1750030928008,8.923e-05,105710.0,105700.0,0.77551871]
[1750030928436,8.923e-05,105710.0,105700.0,0.76605825]
[1750030928650,8.923e-05,105710.0,105700.0,0.76605834]
[1750030929813,8.923e-05,105710.0,105700.0,0.77551863]
[1750030930069,8.923e-05,105710.0,105700.0,0.75659788]
[1750030930285,8.923e-05,105710.0,105700.0,0.76605843]
[1750030930533,8.923e-05,105710.0,105700.0,0.7755188]
[1750030930750,8.923e-05,105710.0,105700.0,0.76605843]
[1750030930941,8.923e-05,105710.0,105700.0,0.78497918]
[1750030931199,8.923e-05,105710.0,105700.0,0.77551889]
[1750030932317,8.923e-05,105710.0,105700.0,0.74713724]
[1750030932758,8.923e-05,105710.0,105700.0,0.54846176]
[1750030933059,8.923e-05,105710.0,105700.0,0.39374176]
[1750030933083,8.923e-05,105710.0,105700.0,0.54846176]
[1750030933302,8.923e-05,105710.0,105700.0,1.17974221]
[1750030933514,8.923e-05,105710.0,105700.0,1.27589143]
[1750030933723,8.923e-05,105710.0,105700.0,1.28535172]
[1750030933986,8.923e-05,105710.0,105700.0,1.1892025]
[1750030934434,8.923e-05,105710.0,105700.0,1.17974221]
[1750030934883,8.923e-05,105710.0,105700.0,1.17028184]
[1750030935086,8.923e-05,105710.0,105700.0,1.17974239]
[1750030935305,8.923e-05,105710.0,105700.0,1.18920285]
[1750030935551,8.923e-05,105710.0,105700.0,1.19866322]
[1750030935761,8.923e-05,105710.0,105700.0,1.18920285]
[1750030935970,8.923e-05,105710.0,105700.0,0.76595532]
[1750030936187,8.923e-05,105710.0,105700.0,0.77541596]
[1750030936393,8.923e-05,105710.0,105700.0,1.17028184]
[1750030937561,8.923e-05,105710.0,105700.0,0.77541596]
[1750030938434,8.923e-05,105710.0,105700.0,1.39868872]
[1750030938645,8.923e-05,105710.0,105700.0,1.37040991]
[1750030939106,4.276862,105730.0,105710.0,0.19864923]
[1750030939326,0.03707057,105730.0,105720.0,0.8656866]
[1750030939551,0.0282016,105730.0,105720.0,0.97530764]
[1750030939770,0.0282016,105730.0,105720.0,0.63136162]
[1750030939986,0.0282016,105730.0,105720.0,0.82999952]
[1750030940208,0.0282016,105730.0,105720.0,0.63136162]
[1750030940419,0.0282016,105730.0,105720.0,0.82999952]
[1750030940818,0.0282016,105730.0,105720.0,0.64082056]
[1750030941041,0.0282016,105730.0,105720.0,0.63136162]
[1750030941719,0.0282016,105730.0,105720.0,0.63436162]
[1750030941963,0.0282016,105730.0,105720.0,0.58544176]
[1750030945454,0.0282016,105730.0,105720.0,0.43044176]
[1750030945697,0.0282016,105730.0,105720.0,0.62580176]
[1750030947534,0.0282016,105730.0,105720.0,0.62576176]
[1750030948809,0.42306748,105730.0,105720.0,0.55520176]
[1750030949052,0.45546748,105730.0,105720.0,0.3038]
[1750030949303,0.46434841,105730.0,105720.0,0.45896]
[1750030949536,0.46434861,105730.0,105720.0,0.45904]
[1750030949772,0.46434865,105730.0,105720.0,0.45904]
[1750030950033,0.50190235,105730.0,105720.0,0.45904]
[1750030950259,0.51078354,105730.0,105720.0,0.45904]
[1750030950495,0.51078355,105730.0,105720.0,0.16024]
[1750030950729,0.50190235,105730.0,105720.0,0.16024]
[1750030950958,0.51078348,105730.0,105720.0,0.16024]
[1750030951195,0.50190235,105730.0,105720.0,0.16024]
[1750030951953,0.51078349,105730.0,105720.0,0.16024]
[1750030952196,0.50190235,105730.0,105720.0,0.16024]
[1750030952417,0.51078348,105730.0,105720.0,0.16024]
[1750030952656,0.5107835,105730.0,105720.0,0.16024]
[1750030952874,0.51078347,105730.0,105720.0,0.16024]
[1750030953100,0.51078348,105730.0,105720.0,0.16024]
[1750030953373,0.05318268,105730.0,105720.0,0.16024]
[1750030953602,0.43194855,105730.0,105720.0,0.16024]
[1750030953843,0.43836748,105730.0,105720.0,0.16024]
[1750030954059,0.44724853,105730.0,105720.0,0.16024]
[1750030954282,0.44724854,105730.0,105720.0,0.16024]
[1750030954501,0.43836748,105730.0,105720.0,0.16024]
[1750030954715,0.44724853,105730.0,105720.0,0.16024]
[1750030955592,0.43836748,105730.0,105720.0,0.16024]
[1750030956024,0.44724854,105730.0,105720.0,0.16024]
[1750030956738,0.44724856,105730.0,105720.0,0.16024]
[1750030956962,0.53504234,105730.0,105720.0,0.005]
[1750030957419,0.54392342,105730.0,105720.0,0.005]
[1750030957635,0.46364855,105730.0,105720.0,0.005]
[1750030958337,0.0599016,105730.0,105720.0,0.005]
[1750030958567,0.45476748,105730.0,105720.0,0.005]
[1750030958798,0.46364854,105730.0,105720.0,0.005]
[1750030959029,5.08051058,105730.0,105720.0,0.005]
[1750030959258,5.17444008,105730.0,105720.0,0.005]
[1750030959483,5.1833221,105730.0,105720.0,0.005]
[1750030959726,4.78845648,105730.0,105720.0,0.005]
[1750030959958,5.17666078,105730.0,105720.0,0.005]
[1750030960174,5.17666078,105730.0,105720.0,0.002]
[1750030960175,5.18332235,105730.0,105720.0,0.002]
[1750030960404,5.18332235,105730.0,105700.0,0.45436]
[1750030960405,4.309562,105720.0,105700.0,0.45436]
[1750030960634,4.276862,105710.0,105700.0,0.39504176]
[1750030960860,0.40374795,105710.0,105700.0,0.39504176]
[1750030961331,0.40374796,105710.0,105700.0,0.39504176]
[1750030961555,0.40374792,105710.0,105700.0,0.39604176]
[1750030961787,0.42081184,105710.0,105700.0,0.55060176]
[1750030962235,0.39486588,105710.0,105700.0,0.55360176]
[1750030964626,0.39486588,105710.0,105700.0,0.40004176]
[1750030964860,0.43544817,105710.0,105700.0,0.3038]
[1750030965107,4.70342788,105710.0,105700.0,0.005]
[1750030965343,4.8084602,105710.0,105700.0,0.005]
[1750030965579,4.80846019,105710.0,105700.0,0.005]
[1750030965813,4.80846021,105710.0,105700.0,0.005]
[1750030966042,4.7995771,105710.0,105700.0,0.005]
[1750030966256,4.80846022,105710.0,105700.0,0.005]
[1750030966517,4.7995771,105710.0,105700.0,0.005]
[1750030966741,4.80846019,105710.0,105700.0,0.005]
[1750030967182,4.7995771,105710.0,105700.0,0.005]
[1750030967442,4.80846019,105710.0,105700.0,0.005]
[1750030967903,4.70342788,105710.0,105700.0,0.005]
[1750030968132,4.67172788,105710.0,105700.0,0.0363]
[1750030968358,4.68061093,105710.0,105700.0,0.0363]
[1750030968586,4.68061091,105710.0,105700.0,0.005]
[1750030969530,4.67172788,105710.0,105700.0,0.005]
[1750030970232,4.68061095,105710.0,105700.0,0.005]
[1750030970463,4.68061094,105710.0,105700.0,0.005]
[1750030970918,4.68742788,105710.0,105700.0,0.005]
[1750030971145,4.69631092,105710.0,105700.0,0.005]
[1750030971436,4.68742788,105710.0,105700.0,0.005]
[1750030971656,4.69631092,105710.0,105700.0,0.005]
[1750030971883,4.69631091,105710.0,105700.0,0.005]
[1750030972306,4.7835771,105710.0,105700.0,0.005]
[1750030972815,4.79246014,105710.0,105700.0,0.005]
[1750030973281,4.80856014,105710.0,105700.0,0.005]
[1750030974189,4.80856017,105710.0,105700.0,0.005]
[1750030974418,4.80856021,105710.0,105700.0,0.005]
[1750030974644,4.7996771,105710.0,105700.0,0.005]
[1750030974869,4.80856023,105710.0,105700.0,0.005]
[1750030975556,4.70352788,105710.0,105700.0,0.005]
[1750030975821,4.71241101,105710.0,105700.0,0.005]
[1750030976305,4.71241098,105710.0,105700.0,0.005]
[1750030976532,4.3014451,105710.0,105700.0,0.005]
[1750030976776,4.68742788,105710.0,105700.0,0.005]
[1750030976990,4.67172788,105710.0,105700.0,0.005]
[1750030977214,4.68061096,105710.0,105700.0,0.005]
[1750030977891,4.28574508,105710.0,105700.0,0.0365]
[1750030978126,4.68061096,105710.0,105700.0,0.0365]
[1750030978608,0.200084,105720.0,105700.0,0.0365]
[1750030978609,0.028444,105720.0,105700.0,0.11268722]
[1750030978824,0.73486588,105720.0,105700.0,0.11268722]
[1750030979073,0.73486588,105720.0,105700.0,0.14418722]
[1750030979321,0.7437481,105720.0,105700.0,0.14418722]
[1750030979566,0.00888205,105720.0,105710.0,0.0315]
[1750030979816,0.008882,105720.0,105710.0,0.0315]
[1750030980068,0.40374787,105720.0,105710.0,0.0315]
[1750030980590,0.40374786,105720.0,105710.0,0.0315]
[1750030980847,0.49460493,105720.0,105700.0,0.28534176]
[1750030981129,0.39486588,105710.0,105700.0,0.28534176]
[1750030981399,0.40374795,105710.0,105700.0,0.28534176]
[1750030981667,0.40374794,105710.0,105700.0,0.12974176]
[1750030981934,0.40374797,105710.0,105700.0,0.12874176]
[1750030982174,0.39486588,105710.0,105700.0,0.12874176]
[1750030982683,0.40374799,105710.0,105700.0,0.13074176]
[1750030982936,0.40374798,105710.0,105700.0,0.13074176]
[1750030983182,0.0088821,105710.0,105700.0,0.42954176]
[1750030983679,0.40374802,105720.0,105700.0,0.42954176]
[1750030983930,0.41263016,105720.0,105700.0,0.43054176]
[1750030984182,0.00888214,105720.0,105700.0,0.42954176]
[1750030984394,0.40374802,105720.0,105710.0,0.0308]
[1750030984616,0.41263009,105720.0,105710.0,0.12704176]
[1750030984856,0.41262998,105720.0,105710.0,0.12704176]
[1750030985069,0.4126299,105720.0,105710.0,0.12704176]
[1750030985318,0.0177639,105720.0,105710.0,0.12704176]
[1750030985545,0.00888214,105720.0,105710.0,0.12704176]
[1750030985780,0.00888214,105720.0,105710.0,0.12804176]
[1750030987466,0.40374802,105720.0,105710.0,0.12804176]
[1750030987912,0.4126278,105720.0,105710.0,0.12804176]
[1750030988582,0.40374802,105720.0,105710.0,0.12804176]
[1750030989012,0.4126278,105720.0,105710.0,0.12804176]
[1750030989465,0.01776192,105720.0,105710.0,0.13040652]
[1750030989689,0.00888214,105720.0,105710.0,0.12804176]
[1750030990369,0.40374802,105720.0,105710.0,0.12804176]
[1750030990582,0.41262781,105720.0,105710.0,0.12804176]
[1750030991231,0.41262784,105720.0,105710.0,0.12804176]
[1750030991703,0.41262989,105720.0,105710.0,0.12804176]
[1750030991918,0.41262988,105720.0,105710.0,0.12804176]
[1750030992158,0.40374802,105720.0,105710.0,0.12804176]
[1750030992379,0.41262989,105720.0,105710.0,0.12804176]
[1750030992604,0.41262988,105720.0,105710.0,0.12804176]
[1750030992955,0.41262985,105720.0,105710.0,0.12804176]
[1750030993191,0.41262987,105720.0,105710.0,0.12804176]
[1750030993774,0.40374802,105720.0,105710.0,0.12804176]
[1750030993981,0.41262982,105720.0,105710.0,0.12804176]
[1750030994236,0.01776393,105720.0,105710.0,0.12804176]
[1750030994393,0.39486588,105720.0,105710.0,0.12804176]
[1750030995636,0.39486588,105720.0,105710.0,0.13040648]
[1750030996472,0.39486588,105720.0,105710.0,0.12804176]
[1750030996898,0.39486588,105720.0,105710.0,0.28360176]
[1750030997326,4.67172788,105720.0,105710.0,0.28360176]
[1750030997564,0.39486588,105720.0,105710.0,0.28360176]
[1750031000210,4.276862,105720.0,105710.0,0.28522994]
[1750031000425,4.276862,105720.0,105710.0,0.25280176]
[1750031000640,4.276862,105720.0,105710.0,0.55160176]
[1750031000856,4.276862,105720.0,105710.0,0.58270176]
[1750031001513,4.276862,105720.0,105710.0,0.42714176]
[1750031001796,4.276862,105720.0,105710.0,0.58258176]
[1750031002017,0.01652236,105720.0,105710.0,0.58254176]
[1750031002234,4.276862,105720.0,105710.0,0.58254176]
[1750031002669,4.276862,105720.0,105710.0,0.42714176]
[1750031002886,4.276862,105720.0,105710.0,0.58254176]
[1750031004813,0.39486588,105720.0,105710.0,0.58254176]
[1750031006381,0.40374728,105720.0,105710.0,0.58254176]
[1750031007259,0.40374738,105720.0,105710.0,0.58254176]
[1750031007534,4.28574338,105720.0,105710.0,0.58254176]
[1750031007746,0.43341187,105730.0,105710.0,0.58254176]
[1750031007962,0.44229325,105730.0,105710.0,0.58254176]
[1750031008194,4.276862,105720.0,105710.0,0.58254176]
[1750031008626,0.00888149,105720.0,105710.0,0.58254176]
[1750031008840,4.276862,105720.0,105710.0,0.58254176]
[1750031009262,4.28573669,105720.0,105710.0,0.58254176]
[1750031009578,4.276862,105720.0,105710.0,0.58154176]
[1750031009859,4.28573671,105720.0,105710.0,0.58154176]
[1750031010288,0.43341187,105730.0,105710.0,0.58154176]
[1750031010516,0.43341187,105730.0,105710.0,0.58254176]
[1750031010733,0.39486588,105720.0,105710.0,0.2998]
[1750031010972,0.41934071,105720.0,105710.0,0.45496]
[1750031011205,0.41046588,105720.0,105710.0,0.45396]
[1750031011430,0.41934083,105720.0,105710.0,0.45396]
[1750031011643,0.41046588,105720.0,105710.0,0.45396]
[1750031011850,0.41934082,105720.0,105710.0,0.45396]
[1750031012314,0.41934081,105720.0,105710.0,0.45396]
[1750031012524,0.41046588,105720.0,105710.0,0.15516]
[1750031013166,0.40374081,105720.0,105710.0,0.15616]
[1750031013625,0.39486588,105720.0,105710.0,0.15616]
[1750031014059,0.40374081,105720.0,105710.0,0.15616]
[1750031014277,0.39486588,105720.0,105710.0,0.15616]
[1750031014747,0.11732718,105730.0,105720.0,0.21580802]
[1750031014748,0.03854599,105730.0,105720.0,0.21580802]
[1750031015004,0.00886834,105750.0,105740.0,0.26445442]
[1750031015230,0.00886834,105750.0,105740.0,0.85402579]
[1750031015448,0.00886834,105750.0,105740.0,1.04575271]
[1750031015670,0.00886834,105750.0,105740.0,1.02732798]
[1750031015916,0.00886834,105750.0,105740.0,1.05631633]
[1750031016366,0.00886834,105750.0,105740.0,1.39931633]
[1750031016559,0.00886834,105750.0,105740.0,1.48499456]
[1750031016859,0.00886834,105750.0,105740.0,1.49199456]
[1750031017567,0.00886834,105750.0,105740.0,1.45442951]
[1750031017833,0.00886834,105750.0,105740.0,1.45942951]
[1750031019116,0.00886834,105750.0,105740.0,1.42910371]
[1750031019361,0.00886834,105750.0,105740.0,1.46794734]
[1750031021407,0.00886834,105750.0,105740.0,1.43771592]
[1750031021632,0.00886834,105750.0,105740.0,1.40959491]
[1750031028248,0.00886834,105750.0,105740.0,1.25255491]
[1750031028467,0.00886834,105750.0,105740.0,1.43939491]
[1750031037768,0.00886834,105750.0,105740.0,1.46751592]
[1750031038874,0.01774487,105750.0,105740.0,0.97650082]
[1750031039102,0.01774492,105750.0,105740.0,1.3713667]
[1750031040490,0.00886834,105750.0,105740.0,1.3713667]
[1750031040708,0.01774492,105750.0,105740.0,1.3713667]
[1750031040930,0.00886834,105750.0,105740.0,1.3713667]
[1750031041157,0.01774492,105750.0,105740.0,1.46751592]
[1750031041379,0.00886834,105750.0,105740.0,1.46751592]
[1750031041612,0.01774492,105750.0,105740.0,1.46751592]
[1750031041872,0.01774492,105750.0,105740.0,1.40893175]
[1750031042098,0.00886834,105750.0,105740.0,1.3713667]
[1750031042318,0.01774494,105750.0,105740.0,1.3713667]
[1750031042541,0.00886834,105750.0,105740.0,1.40893175]
[1750031042758,0.00886834,105750.0,105740.0,1.50508097]
[1750031043475,0.01774494,105750.0,105740.0,1.50508097]
[1750031043695,0.01774494,105750.0,105740.0,1.53289819]
[1750031044194,0.01774494,105750.0,105740.0,1.33661819]
[1750031044417,0.01774494,105750.0,105740.0,1.53285819]
[1750031044653,0.0177449,105750.0,105740.0,1.43879491]
[1750031044874,0.01774489,105750.0,105740.0,1.43919491]
[1750031045067,0.00886834,105750.0,105740.0,1.73799491]
[1750031045325,0.01774489,105750.0,105740.0,1.73799491]
[1750031045565,0.00886834,105750.0,105740.0,1.73799491]
[1750031045785,0.00886834,105750.0,105740.0,1.34312903]
[1750031046075,0.01774489,105750.0,105740.0,1.14648903]
[1750031046291,0.01774489,105750.0,105740.0,1.73795491]
[1750031046292,0.00886834,105750.0,105740.0,1.73795491]
[1750031046518,0.01774489,105750.0,105740.0,1.83770491]
[1750031046740,0.01774482,105750.0,105740.0,1.73795491]
[1750031046971,0.01774483,105750.0,105740.0,1.73795491]
[1750031047414,0.00886834,105750.0,105740.0,1.73795491]
[1750031047643,0.01774484,105750.0,105740.0,1.73795491]
[1750031048386,0.00886834,105750.0,105740.0,1.73795491]
[1750031048605,0.01774485,105750.0,105740.0,1.73795491]
[1750031049037,0.00886834,105750.0,105740.0,1.73795491]
[1750031049282,0.01774485,105750.0,105740.0,1.73795491]
[1750031050005,0.00886834,105750.0,105740.0,1.73795491]
[1750031050656,0.01774485,105750.0,105740.0,1.73795491]
[1750031050876,0.00886834,105750.0,105740.0,1.73795491]
[1750031051109,0.01774485,105750.0,105740.0,1.73795491]
[1750031051346,0.01774485,105750.0,105740.0,1.54135491]
[1750031051581,0.01774485,105750.0,105740.0,1.73771491]
[1750031052079,0.00886834,105750.0,105740.0,1.73771491]
[1750031052302,0.01774485,105750.0,105740.0,1.73771491]
[1750031052524,0.00886834,105750.0,105740.0,1.73771491]
[1750031052988,0.01774485,105750.0,105740.0,1.73771491]
[1750031053473,0.00886834,105750.0,105740.0,1.73767491]
[1750031053714,0.00886834,105750.0,105740.0,1.54135491]
[1750031053943,0.01774485,105750.0,105740.0,1.73767491]
[1750031054398,0.00886834,105750.0,105740.0,1.73767491]
[1750031054616,0.01774485,105750.0,105740.0,1.73767491]
[1750031055071,0.00886834,105750.0,105740.0,1.73767491]
[1750031055291,0.01774485,105750.0,105740.0,1.73767491]
[1750031055510,0.00886834,105750.0,105740.0,1.73767491]
[1750031055808,0.01774485,105750.0,105740.0,1.73767491]
[1750031056512,0.00886834,105750.0,105740.0,1.73767491]
[1750031056921,0.01774485,105750.0,105740.0,1.73767491]
[1750031057356,0.00886834,105750.0,105740.0,1.73767491]
[1750031057569,0.01774485,105750.0,105740.0,1.73767491]
[1750031058435,0.00886834,105750.0,105740.0,1.73767491]
[1750031058650,0.01774485,105750.0,105740.0,1.73767491]
[1750031058864,0.00886834,105750.0,105740.0,1.73767491]
[1750031059069,0.01774485,105750.0,105740.0,1.73767491]
[1750031059284,0.00886834,105750.0,105740.0,1.73767491]
[1750031059530,0.01774485,105750.0,105740.0,1.73767491]
[1750031059975,0.00886834,105750.0,105740.0,1.73767491]
[1750031060481,0.01774485,105750.0,105740.0,1.73767491]
[1750031060729,0.00886834,105750.0,105740.0,1.73767491]
[1750031060972,0.01774485,105750.0,105740.0,1.73767491]
[1750031061620,0.00886834,105750.0,105740.0,1.73767491]
[1750031061838,0.01774485,105750.0,105740.0,1.73767491]
[1750031062315,0.01774483,105750.0,105740.0,1.73767491]
[1750031062771,0.07824748,105780.0,105750.0,0.28105517]
[1750031062996,0.0157,105770.0,105760.0,0.49953782]
[1750031063223,0.0157,105770.0,105760.0,0.49713452]
[1750031063962,0.0157,105770.0,105760.0,0.4876796]
[1750031063963,0.0317,105770.0,105760.0,0.4876796]
[1750031064188,0.0317,105770.0,105760.0,0.49713443]
[1750031064404,0.0317,105770.0,105760.0,0.59328374]
[1750031064638,0.0317,105770.0,105760.0,0.58382882]
[1750031064871,0.0317,105770.0,105760.0,0.58378882]
[1750031065127,0.0317,105770.0,105760.0,0.59324374]
[1750031065351,0.0317,105770.0,105760.0,0.60569857]
[1750031065577,0.0317,105770.0,105760.0,0.59624374]
[1750031065795,0.0317,105770.0,105760.0,0.42417381]
[1750031066016,0.0317,105770.0,105760.0,0.60769884]
[1750031066246,0.0317,105770.0,105760.0,0.58874882]
[1750031066473,0.0317,105770.0,105760.0,0.59820374]
[1750031066696,0.0317,105770.0,105760.0,0.58874882]
[1750031067353,0.0317,105770.0,105760.0,0.59820374]
[1750031067803,0.0317,105770.0,105760.0,0.58874882]
[1750031068033,0.0317,105770.0,105760.0,0.60765839]
[1750031068258,0.0317,105770.0,105760.0,0.59820365]
[1750031068523,0.0317,105770.0,105760.0,0.59820374]
[1750031068738,0.0317,105770.0,105760.0,0.88871374]
[1750031068975,0.0317,105770.0,105760.0,0.87925891]
[1750031069209,0.0317,105770.0,105760.0,0.86034898]
[1750031069436,0.0317,105770.0,105760.0,0.86980399]
[1750031070358,0.0317,105770.0,105760.0,0.41051707]
[1750031070599,0.0317,105770.0,105760.0,0.76463985]
[1750031070832,0.0317,105770.0,105760.0,0.78355014]
[1750031071120,0.0317,105770.0,105760.0,0.79300515]
[1750031071470,0.0317,105770.0,105760.0,0.78355014]
[1750031071918,0.0317,105770.0,105760.0,0.87969936]
[1750031072395,0.0317,105770.0,105760.0,0.86078765]
[1750031072611,0.0317,105770.0,105760.0,0.67168024]
[1750031072855,0.0317,105770.0,105760.0,0.7093071]
[1750031073080,0.0317,105770.0,105760.0,0.90786979]
[1750031073303,0.0317,105770.0,105760.0,0.81172057]
[1750031073974,0.0317,105770.0,105760.0,0.82117576]
[1750031075926,0.0317,105770.0,105760.0,0.81172057]
[1750031076159,0.0317,105770.0,105760.0,0.82117576]
[1750031077844,0.0317,105770.0,105760.0,0.81172057]
[1750031078268,0.0317,105770.0,105760.0,0.82117576]
[1750031078787,0.0317,105770.0,105760.0,0.91732498]
[1750031079014,0.0317,105770.0,105760.0,0.92678008]
[1750031079955,0.0317,105770.0,105760.0,0.91732498]
[1750031082747,0.08859569,105780.0,105760.0,0.92677999]
[1750031082989,0.52279667,105780.0,105770.0,0.00236334]
[1750031083277,0.05619504,105780.0,105770.0,1.14163424]
[1750031083482,0.05619504,105780.0,105770.0,0.7871036]
[1750031083483,0.04731922,105780.0,105770.0,0.7871036]
[1750031083700,0.04731922,105780.0,105770.0,1.18310025]
[1750031083929,0.04731922,105780.0,105770.0,1.19255427]
[1750031084382,0.06321922,105780.0,105770.0,0.73056869]
[1750031084596,0.06321922,105780.0,105770.0,0.73156869]
[1750031085032,0.06321922,105780.0,105770.0,0.74102289]
[1750031085470,0.06321922,105780.0,105770.0,0.750477]
[1750031085688,0.02457174,105780.0,105770.0,0.750477]
[1750031086128,0.02457174,105780.0,105770.0,0.73156869]
[1750031086607,0.04017174,105780.0,105770.0,0.73156869]
[1750031086828,0.04017174,105780.0,105770.0,0.73156878]
[1750031087055,0.04017174,105780.0,105770.0,0.56243565]
[1750031087285,0.43398325,105780.0,105770.0,0.40651565]
[1750031087507,0.43398325,105780.0,105770.0,0.56243565]
[1750031088371,0.43398325,105780.0,105770.0,0.40651565]
[1750031088587,0.47256458,105780.0,105770.0,0.56243565]
[1750031088801,0.47256458,105780.0,105770.0,0.12546048]
[1750031089011,0.47256458,105780.0,105770.0,0.25312176]
[1750031089436,0.0876294,105780.0,105770.0,0.25312176]
[1750031089650,0.47256458,105780.0,105770.0,0.59312176]
[1750031090083,0.48144095,105780.0,105770.0,0.43724176]
[1750031090755,0.48144099,105780.0,105770.0,0.43724176]
[1750031090964,0.47256458,105780.0,105770.0,0.43724176]
[1750031091184,0.48144102,105780.0,105770.0,0.59312176]
[1750031091408,0.48144102,105780.0,105770.0,0.25312176]
[1750031092350,0.48144102,105780.0,105770.0,0.09724176]
[1750031092568,0.48144102,105780.0,105770.0,0.25312176]
[1750031092788,0.48144099,105780.0,105770.0,0.25312176]
[1750031092998,0.47256458,105780.0,105770.0,0.25312176]
[1750031093223,0.481441,105780.0,105770.0,0.25312176]
[1750031093436,0.47256458,105780.0,105770.0,0.25312176]
[1750031093858,0.481441,105780.0,105770.0,0.25312176]
[1750031094126,0.47256458,105780.0,105770.0,0.25312176]
[1750031094345,0.481441,105780.0,105770.0,0.25312176]
[1750031094553,0.47256458,105780.0,105770.0,0.25312176]
[1750031094764,0.481441,105780.0,105770.0,0.25312176]
[1750031094992,0.47256458,105780.0,105770.0,0.25312176]
[1750031096073,0.481441,105780.0,105770.0,0.25312176]
[1750031096283,0.47256458,105780.0,105770.0,0.09724176]
[1750031096503,0.481441,105780.0,105770.0,0.25296176]
[1750031096751,0.47256458,105780.0,105770.0,0.25296176]
[1750031097409,0.48144103,105780.0,105770.0,0.25296176]
[1750031097627,0.47256458,105780.0,105770.0,0.09724176]
[1750031098301,0.08762952,105780.0,105770.0,0.53389693]
[1750031098518,0.47256458,105780.0,105770.0,0.53389693]
[1750031098951,0.48144103,105780.0,105770.0,0.5942085]
[1750031099189,0.48144103,105780.0,105770.0,0.53389693]
[1750031099610,0.47256458,105780.0,105770.0,0.53389693]
[1750031099846,0.48144103,105780.0,105770.0,0.53389693]
[1750031100066,0.47256458,105780.0,105770.0,0.53389693]
[1750031101652,0.48143992,105780.0,105770.0,0.53389693]
[1750031102132,0.47256458,105780.0,105770.0,0.53389693]
[1750031102564,0.47256458,105780.0,105770.0,0.5942085]
[1750031102777,0.0876284,105780.0,105770.0,0.5942085]
[1750031102996,0.04725307,105780.0,105770.0,0.53389693]
[1750031103215,0.04725307,105780.0,105770.0,0.62578629]
[1750031103426,0.04725307,105780.0,105770.0,0.81748449]
[1750031103882,0.04725307,105780.0,105770.0,0.81748458]
[1750031104099,0.04725307,105780.0,105770.0,0.82433029]
[1750031104310,0.04725307,105780.0,105770.0,0.83378467]
[1750031104541,0.04725307,105780.0,105770.0,0.92993389]
[1750031104966,0.04725307,105780.0,105770.0,0.72193551]
[1750031105179,0.04725307,105780.0,105770.0,0.71508998]
[1750031105605,0.04725307,105780.0,105770.0,0.72454436]
[1750031105841,0.04725307,105780.0,105770.0,0.71508998]
[1750031106057,0.04725307,105780.0,105770.0,0.70563551]
[1750031106289,0.04725307,105780.0,105770.0,0.61894076]
[1750031106502,0.04725307,105780.0,105770.0,0.60948629]
[1750031106918,0.04725307,105780.0,105770.0,0.53389693]
[1750031110083,0.06235307,105780.0,105770.0,0.53389693]
[1750031110322,0.47156458,105780.0,105770.0,0.09724176]
[1750031110564,0.89361466,105780.0,105770.0,0.09724176]
[1750031110778,5.19824969,105780.0,105770.0,0.001]
[1750031111006,5.21442988,105780.0,105770.0,0.001]
[1750031111235,5.20777544,105780.0,105770.0,0.001]
[1750031111490,0.0316,105750.0,105740.0,0.02821872]
[1750031111733,0.42541151,105750.0,105740.0,0.25188176]
[1750031112189,0.50733381,105750.0,105740.0,0.25192176]
[1750031112640,0.42541151,105750.0,105740.0,0.09624176]
[1750031112864,0.42541151,105750.0,105740.0,0.25188176]
[1750031113089,0.42541151,105750.0,105740.0,0.25388176]
[1750031114079,0.42541151,105750.0,105740.0,0.10124176]
[1750031114302,0.42541151,105750.0,105740.0,0.25688176]
[1750031114526,0.42541151,105750.0,105740.0,0.10124176]
[1750031114751,0.42541151,105750.0,105740.0,0.25684176]
[1750031115478,4.70227351,105750.0,105740.0,0.10124176]
[1750031115710,4.73120238,105750.0,105740.0,0.1606]
[1750031115926,4.74007655,105750.0,105740.0,0.1606]
[1750031116155,4.73120238,105750.0,105740.0,0.1606]
[1750031116377,4.74007662,105750.0,105740.0,0.1606]
[1750031116566,4.74007662,105750.0,105740.0,0.005]
[1750031117281,4.73120238,105750.0,105740.0,0.005]
[1750031117509,4.83622584,105750.0,105740.0,0.16056]
[1750031117724,4.8273516,105750.0,105740.0,0.16056]
[1750031117940,4.83622584,105750.0,105740.0,0.16056]
[1750031118381,4.83622584,105750.0,105740.0,0.005]
[1750031118599,4.73120238,105750.0,105740.0,0.005]
[1750031118823,4.74007662,105750.0,105740.0,0.005]
[1750031119288,4.73120238,105750.0,105740.0,0.005]
[1750031119510,4.74007662,105750.0,105740.0,0.005]
[1750031119970,4.73120238,105750.0,105740.0,0.005]
[1750031120196,4.83622584,105750.0,105740.0,0.005]
[1750031120658,5.1673516,105750.0,105740.0,0.005]
[1750031120882,5.17622606,105750.0,105740.0,0.005]
[1750031121162,5.21131928,105750.0,105740.0,0.005]
[1750031121393,5.3603031,105750.0,105740.0,0.005]
[1750031121613,5.36695978,105750.0,105740.0,0.003]
[1750031121841,5.36030313,105750.0,105740.0,0.004]
[1750031122072,5.35808425,105750.0,105740.0,0.004]
[1750031122325,5.3515076,105750.0,105740.0,0.003]
[1750031122776,0.0322,105730.0,105720.0,0.43681517]
[1750031123035,0.46323151,105730.0,105720.0,0.28105517]
[1750031123257,0.00887574,105730.0,105720.0,0.53305693]
[1750031123479,4.276862,105730.0,105720.0,0.53305693]
[1750031124369,4.276862,105730.0,105720.0,0.53605693]
[1750031125065,4.276862,105730.0,105720.0,0.25700176]
[1750031125519,4.276862,105730.0,105720.0,0.10124176]
[1750031125744,0.0318,105730.0,105720.0,0.25700176]
[1750031126182,0.42561151,105730.0,105720.0,0.10124176]
[1750031126369,0.42561151,105730.0,105720.0,0.25692176]
[1750031127098,0.04067537,105730.0,105720.0,0.25692176]
[1750031127326,0.0318,105730.0,105720.0,0.25692176]
[1750031128498,0.0318,105730.0,105720.0,0.10124176]
[1750031128718,4.78187826,105730.0,105720.0,0.25688176]
[1750031128948,4.79075384,105730.0,105720.0,0.25688176]
[1750031129171,4.78187826,105730.0,105720.0,0.25688176]
[1750031129410,4.79075392,105730.0,105720.0,0.25488176]
[1750031129631,4.78187826,105730.0,105720.0,0.25188176]
[1750031130082,4.70247351,105730.0,105720.0,0.25288176]
[1750031130279,4.71134917,105730.0,105720.0,0.001]
[1750031130534,5.04247351,105730.0,105720.0,0.15656]
[1750031130755,5.13862273,105730.0,105720.0,0.15756]
[1750031131000,5.04247351,105730.0,105720.0,0.15756]
[1750031131450,5.07091151,105730.0,105720.0,0.15656]
[1750031131674,5.07979303,105730.0,105720.0,0.15656]
[1750031131908,5.07091151,105730.0,105720.0,0.15656]
[1750031132126,5.07979306,105730.0,105720.0,0.15656]